[Event "RUS-ch Youth U21 Girls 2017"]
[Site "Loo"]
[Date "2017.04.26"]
[Round "7"]
[White "Dimitrova, Aleksandra"]
[Black "Obolentseva, Alexandra"]
[Result "0-1"]
[ECO "B51"]
[WhiteElo "2246"]
[BlackElo "2346"]
[Annotator "NA"]
[PlyCount "70"]
[EventDate "2017.??.??"]
[EventType "tourn"]
[EventCountry "RUS"]
[SourceTitle "playchess.com"]
[Source "ChessBase"]
[SourceQuality "1"]
[TimeControl "40/5400+30:1800+30"]

{[%evp 8,67,20,8,24,32767,32767,32767,32767,32767,32767,32767,32767,32767,32767,32767,-24,32767,-77,-77,-66,-64,-64,-67,-64,-85,32767,-66,-70,32767,32767,32767,-83,32767,-142,32767,32767,-195,-158,32767,-161,-270,-269,-276,-304,-307,32767,-301,-297,-314,-235,-326,-332,-374,-375,-374,32767,32767,-475,-450,-375,-435]} 1. e4 {[%emt 0:00:00]} c5 {[%emt 0:00:05]} 2. Nf3 {[%emt 0:00:00]} d6 {[%emt 0:00:07]} 3. Bb5+ {[%emt 0:00:00]} Nd7 {[%emt 0:00:07]} 4. d4 {[%emt 0:00:00]} cxd4 {[%emt 0:00:05]} 5. Qxd4 {[%emt 0:00:00] LiveBook: 1059 Partien} Ngf6 {[%emt 0:00:07]} 6. Nc3 {[%emt 0:01:21]} g6 {[%emt 0:01:00]} 7. Bg5 {[%emt 0:07:12] B51: Sicilian: Moscow Variation (3 Bb5+) without 3...Bd7} (7. e5 dxe5 8. Nxe5 Bg7 9. O-O O-O 10. Rd1 Qb6 11. Nxd7 Nxd7 12. Qxb6 Nxb6 13. Bg5 Be6 14. Bxe7 {½-½ (14) Zvjaginsev,V (2659)-Mamedov,R (2637) Khanty-Mansiysk 2013}) 7... Bg7 {[%emt 0:00:12]} 8. O-O {[%emt 0:00:32]} O-O {[%emt 0:00:11]} 9. Qd2 {[%emt 0:00:55]} a6 {[%emt 0:00:28]} 10. Bd3 $146 {[%emt 0:01:55]} (10. Bxd7 Bxd7 11. Bh6 Rc8 12. Bxg7 Kxg7 13. Rfe1 Be6 14. Nd4 Qb6 {0-1 (31) Raaste,E-Fedder,S (2315) Teeside 1974}) 10... b5 {[%emt 0:02:11]} 11. Rfe1 {[%emt 0:05:25]} Bb7 {[%emt 0:00:56]} 12. a4 {[%emt 0:06:34]} b4 {[%emt 0:02:04]} 13. Nd5 {[%emt 0:01:31]} Nxd5 {[%emt 0:03:45]} 14. exd5 {[%emt 0:00:08]} Re8 {[%emt 0:05:59]} ({Stronger than} 14... Bxb2 15. Bxe7 (15. Qxb4 Bxa1 16. Bxe7 Qc8 17. Rxa1 Re8 18. Qxd6 Bxd5 $17) 15... Qc8 16. Rab1 $16 (16. Bxd6 Bxa1 17. Rxa1 Re8 $15) (16. Bxf8 Bc3 17. Qf4 Qxf8 $11)) 15. Qxb4 {[%emt 0:15:49]} Bxd5 {[%emt 0:01:26]} 16. Rad1 {[%emt 0:08:18]} Bxf3 {[%emt 0:12:05]} 17. gxf3 {[%emt 0:00:07]} Ne5 {[%emt 0:00:38]} 18. Qe4 {[%emt 0:02:58]} d5 {[%emt 0:10:30]} 19. Qe2 {[%emt 0:01:55]} Qd7 {[%emt 0:01:33]} 20. f4 {[%emt 0:05:37]} Nxd3 {[%emt 0:02:09]} 21. Rxd3 {[%emt 0:03:28]} h6 {[%emt 0:03:01]} 22. Bh4 {[%emt 0:02:27]} Qxa4 {[%emt 0:01:40]} 23. Rxd5 {[%emt 0:01:48]} Bxb2 {[%emt 0:03:17]} 24. c4 {[%emt 0:04:56]} (24. Qe4 $17 Qxe4 25. Rxe4) 24... Bf6 {[%emt 0:01:24]} 25. Bg3 {[%emt 0:01:55]} e6 {[%emt 0:01:47]} 26. Rdd1 {[%emt 0:01:46]} Bc3 {[%emt 0:00:27]} 27. Rf1 {[%emt 0:01:14]} Rac8 {[%emt 0:01:03]} 28. Rc1 {[%emt 0:01:56]} Qxc4 {[%emt 0:03:10]} 29. Qf3 {[%emt 0:01:15]} Qb4 {[%emt 0:02:05]} 30. f5 {[%emt 0:03:10]} exf5 {[%emt 0:00:52]} 31. Bd6 {[%emt 0:01:00]} Qxd6 {[%emt 0:00:11]} 32. Rxc3 {[%emt 0:00:04]} Rxc3 {[%emt 0:01:12]} 33. Qxc3 {[%emt 0:00:04]} Qe5 {[%emt 0:01:01]} 34. Qc6 $19 {[%emt 0:01:35]} Qe4 {[%emt 0:01:48]} 35. Qc3 {[%emt 0:01:24]} f4 {[%emt 0:01:33]} 0-1

[Event "RUS-ch Youth U21 Girls 2017"]
[Site "Loo"]
[Date "2017.04.26"]
[Round "7"]
[White "Khokhlova, Daria"]
[Black "Maltsevskaya, Aleksandra"]
[Result "1-0"]
[ECO "A58"]
[WhiteElo "2175"]
[BlackElo "2238"]
[Annotator "NA"]
[PlyCount "73"]
[EventDate "2017.??.??"]
[EventType "tourn"]
[EventCountry "RUS"]
[SourceTitle "playchess.com"]
[Source "ChessBase"]
[SourceQuality "1"]
[TimeControl "40/5400+30:1800+30"]

1. d4 {[%emt 0:00:00]} Nf6 {[%emt 0:00:09]} 2. c4 {[%emt 0:00:00]} c5 {[%emt 0:00:08]} 3. d5 {[%emt 0:00:00]} b5 {[%emt 0:00:05]} 4. cxb5 {[%emt 0:00:12]} a6 {[%emt 0:00:07]} 5. bxa6 {[%emt 0:00:02]} g6 {[%emt 0:00:06]} 6. Nc3 {[%emt 0:00:03]} Bg7 {[%emt 0:00:06]} 7. g3 {[%emt 0:00:02]} Bxa6 {[%emt 0:00:51]} 8. Bg2 {[%emt 0:00:05]} d6 {[%emt 0:00:05]} 9. Nf3 {[%emt 0:00:02]} Nbd7 {[%emt 0:00:06]} 10. Rb1 {[%emt 0:00:03]} Qa5 {[%emt 0:00:07]} 11. Bd2 {[%emt 0:02:38]} O-O {[%emt 0:01:39]} 12. O-O {[%emt 0:00:05]} Bb7 {[%emt 0:00:03] A58: Benko/Volga Gambit: Lines with 5 bxa6} 13. Ne1 {[%emt 0:26:13] LiveBook: 3 Games} Qa7 {[%emt 0:05:00]} 14. Nc2 {[%emt 0:09:11]} Nb6 {[%emt 0:14:19]} 15. Ne3 {[%emt 0:02:01]} Nfd7 {[%emt 0:01:59]} 16. b3 {[%emt 0:04:48] [#]} Ba6 $146 {[%emt 0:10:34]} (16... Qa3 17. Qc2 Ba6 18. Rfc1 Bb7 19. Qd1 Rfc8 20. h4 {1-0 (45) Meier,G (2655)-Markowski,T (2567) Legnica 2013}) 17. a4 {[%emt 0:02:23]} Rfb8 {[%emt 0:02:11]} 18. Re1 {[%emt 0:02:32]} Ne5 {[%emt 0:13:23]} 19. h3 {[%emt 0:03:31]} f5 {[%emt 0:08:47]} 20. Nc2 {[%emt 0:03:34]} Bc8 {[%emt 0:04:42]} 21. Nb5 {[%emt 0:03:16]} Qd7 {[%emt 0:04:36]} 22. f4 {[%emt 0:03:31]} Nf7 {[%emt 0:00:11]} 23. Bc3 {[%emt 0:03:34]} Bf6 {[%emt 0:13:41]} 24. Nca3 {[%emt 0:04:41]} Ba6 {[%emt 0:02:35]} 25. Bxf6 {[%emt 0:02:50]} exf6 {[%emt 0:00:05]} 26. Nc3 {[%emt 0:00:13]} c4 $2 {[%emt 0:04:36]} (26... Re8 $16 27. Qd2 Qa7) 27. a5 {[%emt 0:05:16]} Nc8 {[%emt 0:00:56]} 28. b4 {[%emt 0:00:31]} Na7 {[%emt 0:06:02]} 29. Qd4 {[%emt 0:00:34]} Rb7 $18 {[%emt 0:03:08]} 30. Nxc4 {[%emt 0:03:28]} Bxc4 {[%emt 0:00:22]} 31. Qxc4 {[%emt 0:00:01]} Rc8 {[%emt 0:00:07]} 32. Qd4 {[%emt 0:05:21]} Nb5 {[%emt 0:02:57]} 33. Nxb5 {[%emt 0:00:06]} Qxb5 {[%emt 0:00:05]} 34. e3 {[%emt 0:02:45]} Qa4 {[%emt 0:02:18]} 35. Bf1 {[%emt 0:02:52]} Rcb8 {[%emt 0:00:39]} 36. a6 {[%emt 0:02:41]} Rxb4 {[%emt 0:00:05]} 37. a7 {[%emt 0:00:45]} 1-0

[Event "RUS-ch Youth U21 Girls 2017"]
[Site "Loo"]
[Date "2017.04.26"]
[Round "7"]
[White "Rodionova, Daria"]
[Black "Styazhkina, Anna"]
[Result "0-1"]
[ECO "C78"]
[WhiteElo "2164"]
[BlackElo "2222"]
[Annotator "NA"]
[PlyCount "74"]
[EventDate "2017.??.??"]
[EventType "tourn"]
[EventCountry "RUS"]
[SourceTitle "playchess.com"]
[Source "ChessBase"]
[SourceQuality "1"]
[TimeControl "40/5400+30:1800+30"]

1. e4 {[%emt 0:00:00]} e5 {[%emt 0:00:07]} 2. Nf3 {[%emt 0:00:00]} Nc6 {[%emt 0:00:06]} 3. Bb5 {[%emt 0:00:00]} a6 {[%emt 0:00:18]} 4. Ba4 {[%emt 0:00:00]} Nf6 {[%emt 0:00:21]} 5. O-O {[%emt 0:00:13]} Bc5 {[%emt 0:00:25]} 6. c3 {[%emt 0:05:46]} b5 {[%emt 0:00:09]} 7. Bb3 {[%emt 0:00:49]} d6 {[%emt 0:00:26]} 8. d4 {[%emt 0:01:00]} Bb6 {[%emt 0:00:23]} 9. a4 {[%emt 0:01:10]} Rb8 {[%emt 0:00:33]} 10. Na3 {[%emt 0:00:48]} O-O {[%emt 0:01:29]} 11. axb5 {[%emt 0:00:44]} axb5 {[%emt 0:00:07]} 12. Nxb5 {[%emt 0:00:17]} Bg4 {[%emt 0:00:21]} 13. Bc2 {[%emt 0:03:24]} exd4 {[%emt 0:03:58] C78: Ruy Lopez: Archangelsk and Möller Defences} 14. Nbxd4 {[%emt 0:11:19]} Nxd4 {[%emt 0:00:49]} 15. cxd4 {[%emt 0:00:11]} Bxf3 {[%emt 0:00:16]} 16. gxf3 {[%emt 0:01:48]} Nh5 {[%emt 0:01:02]} 17. f4 {[%emt 0:16:35] LiveBook: 3 Games} (17. Kh1 Qf6 18. Be3 c5 19. e5 Qe6 20. exd6 c4 21. b3 cxb3 22. Bxb3 Qxd6 {½-½ (74) Karjakin,S (2772)-Carlsen,M (2853) New York 2016}) 17... Qh4 {[%emt 0:11:16]} 18. Ra3 {[%emt 0:17:05]} c5 {[%emt 0:11:46]} ({Much weaker is} 18... Nxf4 $6 19. Rg3 $16) 19. d5 {[%emt 0:27:19]} c4 {[%emt 0:08:14]} 20. Rf3 $146 {[%emt 0:05:00]} (20. Qf3 Bd4 21. Qh3 Qxh3 22. Rxh3 g6 23. b3 Rfc8 24. Rf3 cxb3 25. Bxb3 Nf6 {½-½ (25) Kobalia,M (2677)-Kasimdzhanov,R (2690) Konya 2012}) 20... Rfe8 {[%emt 0:05:11]} 21. Kg2 {[%emt 0:04:01]} h6 {[%emt 0:04:12]} (21... Qg4+ $11 22. Kh1 Nf6) 22. Bb1 {[%emt 0:07:40]} (22. Re1 $16) 22... Bc5 {[%emt 0:01:01]} 23. f5 {[%emt 0:05:27]} Rb4 {[%emt 0:09:21]} ({Reject} 23... Rxe4 $6 24. Bxe4 Qxe4 25. Re1 Qg4+ 26. Kh1 $14) (23... Qg4+ $5 24. Kh1 $8 Nf6 $11) 24. h3 {[%emt 0:03:11]} Reb8 {[%emt 0:02:40]} 25. Bc2 {[%emt 0:00:18]} Ra8 {[%emt 0:07:24]} 26. Qd2 {[%emt 0:01:24]} Ra1 {[%emt 0:01:35]} 27. Rg1 {[%emt 0:01:19]} Qf6 {[%emt 0:06:28]} 28. Kh1 {[%emt 0:01:28]} Rb8 {[%emt 0:02:11]} 29. Qc3 {[%emt 0:02:02]} Qxc3 $11 {[%emt 0:03:26]} 30. bxc3 {[%emt 0:00:19]} Ra2 {[%emt 0:06:49]} 31. Bd1 {[%emt 0:00:46]} Rb1 {[%emt 0:00:09]} 32. Bxh6 {[%emt 0:01:07]} Rxf2 {[%emt 0:03:36]} 33. Be3 {[%emt 0:00:21]} Bxe3 {[%emt 0:02:35]} 34. Rxe3 {[%emt 0:00:10]} Rbb2 {[%emt 0:00:40]} 35. Rg4 {[%emt 0:01:02]} Nf4 {[%emt 0:01:56]} 36. Bf3 {[%emt 0:00:30]} Rh2+ {[%emt 0:00:57]} 37. Kg1 {[%emt 0:00:05]} Nxh3+ {[%emt 0:00:06]} 0-1

[Event "RUS-ch Youth U21 Girls 2017"]
[Site "Loo"]
[Date "2017.04.28"]
[Round "9"]
[White "Shuvalova, Polina"]
[Black "Bykova, Anastasia"]
[Result "1/2-1/2"]
[ECO "D10"]
[WhiteElo "2376"]
[BlackElo "2241"]
[Annotator "NA"]
[PlyCount "81"]
[EventDate "2017.??.??"]
[EventType "tourn"]
[EventCountry "RUS"]
[SourceTitle "playchess.com"]
[Source "ChessBase"]
[SourceQuality "1"]
[TimeControl "40/5400+30:1800+30"]

{[%evp 8,77,29,21,19,17,34,25,32767,32767,32767,32767,26,33,32767,32767,32767,0,32767,19,32767,0,15,-7,19,0,32767,32767,45,31,35,32767,57,44,47,41,48,42,46,47,47,32767,32767,32767,53,32767,32767,32767,32767,32767,32767,32767,32767,0,0,32767,32767,32767,32767,32767,18,14,21,19,32767,12,32767,32767,32767,32767,32767,30]} 1. d4 {[%emt 0:00:00]} d5 {[%emt 0:00:04]} 2. c4 {[%emt 0:00:00]} c6 {[%emt 0:00:04]} 3. cxd5 {[%emt 0:00:00]} cxd5 {[%emt 0:00:04]} 4. Nc3 {[%emt 0:00:00]} Nf6 {[%emt 0:00:04]} 5. Bf4 {[%emt 0:00:00]} Nc6 {[%emt 0:00:09]} 6. e3 {[%emt 0:00:00] LiveBook: 3071 Games} Bf5 {[%emt 0:00:10]} 7. Qb3 {[%emt 0:00:00]} Na5 {[%emt 0:00:05]} 8. Qa4+ {[%emt 0:00:03] D10: Slav Defence: 3 cxd5 (without early Nf3) and 3 Nc3} Bd7 {[%emt 0:00:06]} 9. Qc2 {[%emt 0:00:03]} e6 {[%emt 0:00:16]} 10. Bd3 {[%emt 0:00:04]} Nc6 {[%emt 0:00:43]} 11. a3 {[%emt 0:00:30]} Nh5 {[%emt 0:00:40]} 12. Be5 {[%emt 0:04:16]} f6 {[%emt 0:00:15]} 13. Bg3 {[%emt 0:06:37]} f5 {[%emt 0:00:07] [#]} 14. Nge2 $146 {[%emt 0:08:00]} (14. Nf3 Be7 15. Be5 Nf6 {0-1 (30) Tregubov,P (2585)-Svane,R (2555) Doha 2016}) 14... Be7 {[%emt 0:00:52]} 15. Be5 {[%emt 0:11:22]} Nxe5 {[%emt 0:04:35]} 16. dxe5 {[%emt 0:00:02]} g6 {[%emt 0:00:14]} 17. O-O {[%emt 0:04:58]} Rc8 {[%emt 0:01:51]} 18. Nd4 {[%emt 0:02:43]} O-O {[%emt 0:03:24]} 19. f4 {[%emt 0:00:30]} Qb6 {[%emt 0:08:40]} 20. Qb3 {[%emt 0:08:17]} Qxb3 {[%emt 0:14:08]} 21. Nxb3 {[%emt 0:00:35]} Rc7 {[%emt 0:00:13]} 22. Rfc1 {[%emt 0:01:56]} Rfc8 {[%emt 0:00:42]} 23. Kf2 {[%emt 0:02:02]} Ng7 {[%emt 0:01:01]} 24. Ne2 {[%emt 0:02:22]} Ne8 {[%emt 0:01:51]} 25. Nbd4 {[%emt 0:01:28]} a6 {[%emt 0:00:57]} 26. Rxc7 {[%emt 0:00:54]} Rxc7 {[%emt 0:00:19]} 27. Rc1 {[%emt 0:00:15]} Kf7 {[%emt 0:01:18]} 28. Rg1 {[%emt 0:01:25]} Rc8 {[%emt 0:05:39]} 29. g3 {[%emt 0:03:29]} Nc7 {[%emt 0:01:22]} 30. Rc1 {[%emt 0:10:40]} Na8 {[%emt 0:01:05]} 31. Rxc8 {[%emt 0:00:21]} Bxc8 {[%emt 0:00:01]} 32. Nc2 {[%emt 0:00:20]} Bd7 {[%emt 0:03:59]} 33. Ned4 {[%emt 0:00:26]} Nb6 {[%emt 0:01:10]} 34. b3 {[%emt 0:00:13]} Na8 {[%emt 0:01:48]} 35. Ke2 {[%emt 0:00:50]} Nc7 {[%emt 0:00:40]} 36. Kd2 {[%emt 0:00:40]} Ke8 {[%emt 0:00:34]} 37. Ke2 {[%emt 0:00:17]} Kd8 {[%emt 0:00:12]} 38. Kd2 {[%emt 0:00:02]} Kc8 {[%emt 0:00:13]} 39. Kc3 $11 {[%emt 0:00:43]} Kb8 {[%emt 0:00:46]} 40. b4 {[%emt 0:00:00]} b6 {[%emt 0:03:32]} 41. Kb3 {[%emt 0:17:20]} 1/2-1/2

[Event "RUS-ch Youth U21 Girls 2017"]
[Site "Loo"]
[Date "2017.04.28"]
[Round "9"]
[White "Dimitrova, Aleksandra"]
[Black "Chernyak, Viktoria"]
[Result "1/2-1/2"]
[ECO "B09"]
[WhiteElo "2246"]
[BlackElo "2241"]
[Annotator "NA"]
[PlyCount "74"]
[EventDate "2017.??.??"]
[EventType "tourn"]
[EventCountry "RUS"]
[SourceTitle "playchess.com"]
[Source "ChessBase"]
[SourceQuality "1"]
[TimeControl "40/5400+30:1800+30"]

{[%evp 8,71,43,26,32,38,48,32767,32767,39,32767,33,32767,32767,33,0,5,32767,-32,-54,-51,-35,-37,-43,-41,-30,-10,-31,32767,32767,-8,0,0,-13,0,32767,0,0,0,0,0,32767,0,32767,0,32767,32767,0,0,32767,0,-25,32767,0,32767,-61,0,0,0,32767,0,-48,-33,-35,0,0]} 1. e4 {[%emt 0:00:00]} g6 {[%emt 0:00:06]} 2. d4 {[%emt 0:00:00]} Bg7 {[%emt 0:00:34]} 3. Nc3 {[%emt 0:00:00]} d6 {[%emt 0:00:00]} 4. f4 {[%emt 0:00:02]} Nf6 {[%emt 0:00:00]} 5. Nf3 {[%emt 0:00:21] LiveBook: 4833 Games} O-O {[%emt 0:00:00]} 6. Bd3 {[%emt 0:00:04]} Na6 {[%emt 0:00:00]} 7. O-O {[%emt 0:00:23]} c5 {[%emt 0:00:10]} 8. d5 $1 {[%emt 0:00:19]} Rb8 {[%emt 0:00:22]} 9. Qe2 {[%emt 0:04:12]} Nc7 {[%emt 0:01:50]} 10. a4 {[%emt 0:00:35]} b6 {[%emt 0:03:05]} 11. Ra3 $146 {[%emt 0:06:25] B09: Pirc Defence: Austrian Attack} (11. Nb5 a6 12. Nxc7 Qxc7 13. c4 e6 14. e5 Ne8 15. Bd2 exd5 16. cxd5 Bb7 17. Bxa6 Bxd5 18. Bc3 Bc6 {0-1 (35) Esen,B (2571)-Nepomniachtchi,I (2714) Jerusalem 2015}) 11... a6 {[%emt 0:01:19]} 12. Rb3 {[%emt 0:00:21]} e6 {[%emt 0:02:08]} 13. dxe6 {[%emt 0:01:56]} Bxe6 {[%emt 0:01:14]} 14. Bc4 $1 {[%emt 0:00:42]} Bxc4 {[%emt 0:15:34]} 15. Qxc4 {[%emt 0:00:03]} Qd7 {[%emt 0:04:31]} 16. e5 {[%emt 0:03:31]} dxe5 {[%emt 0:04:29]} 17. Nxe5 {[%emt 0:00:49]} Qe6 {[%emt 0:05:40]} 18. Qxe6 {[%emt 0:02:20]} Nxe6 {[%emt 0:02:13]} 19. Be3 {[%emt 0:03:34]} Rfc8 {[%emt 0:01:27]} 20. Rd1 {[%emt 0:01:18]} Bf8 {[%emt 0:00:41]} 21. Nd5 {[%emt 0:18:39]} Nxd5 {[%emt 0:00:27]} 22. Rxd5 {[%emt 0:00:02]} b5 {[%emt 0:14:03]} 23. axb5 {[%emt 0:03:50]} c4 {[%emt 0:03:16]} 24. Nxc4 {[%emt 0:04:43]} axb5 {[%emt 0:03:01]} ({But not} 24... Rxc4 25. bxa6 Ra8 26. a7 $16) 25. Ne5 {[%emt 0:04:15]} Rxc2 {[%emt 0:02:33]} 26. Rdxb5 {[%emt 0:03:22]} Ra8 {[%emt 0:00:31]} 27. h3 {[%emt 0:01:53]} Ra1+ {[%emt 0:00:27]} 28. Kh2 {[%emt 0:00:06]} Re1 {[%emt 0:00:27]} 29. Kg3 {[%emt 0:08:35]} Ree2 {[%emt 0:00:26]} 30. Kf3 {[%emt 0:01:58]} Rxg2 {[%emt 0:00:53]} 31. Nd3 {[%emt 0:09:00]} (31. Rb8 $11) 31... Rge2 {[%emt 0:04:00]} (31... Rh2 $1 $15 32. Nf2 Bc5 33. Rxc5 Rcxf2+ 34. Bxf2 Rxh3+ 35. Bg3 Nxc5 36. Rb8+ Kg7) 32. Rb8 {[%emt 0:02:23]} Kg7 {[%emt 0:04:00]} 33. R3b7 {[%emt 0:03:19]} Rh2 {[%emt 0:03:41]} ({Don't play} 33... Bd6 $6 34. Re8 Kh6 35. f5+ Rxe3+ 36. Kxe3 $16) 34. Kg3 {[%emt 0:05:11]} Rcg2+ {[%emt 0:11:48]} 35. Kf3 $1 {[%emt 0:00:08]} Rc2 $11 {[%emt 0:00:15]} ({Much weaker is} 35... Bd6 $6 36. Re8 Rxh3+ 37. Kxg2 $14) 36. Kg3 {[%emt 0:00:05]} Rhg2+ {[%emt 0:06:59]} 37. Kf3 {[%emt 0:00:14]} Rh2 {[%emt 0:00:17]} 1/2-1/2

[Event "RUS-ch Youth U21 Girls 2017"]
[Site "Loo"]
[Date "2017.04.28"]
[Round "9"]
[White "Maltsevskaya, Aleksandra"]
[Black "Styazhkina, Anna"]
[Result "1/2-1/2"]
[ECO "C78"]
[WhiteElo "2238"]
[BlackElo "2222"]
[Annotator "NA"]
[PlyCount "61"]
[EventDate "2017.??.??"]
[EventType "tourn"]
[EventCountry "RUS"]
[SourceTitle "playchess.com"]
[Source "ChessBase"]
[SourceQuality "1"]
[TimeControl "40/5400+30:1800+30"]

{[%evp 8,57,18,21,32767,32767,32767,32767,32767,32767,32767,32767,12,2,0,0,0,-2,32767,-4,12,16,25,14,153,146,142,32767,0,0,0,32767,32767,0,0,0,0,0,32767,32767,32767,23,43,32767,32767,25,32767,27,33,25,29,0]} 1. e4 {[%emt 0:00:00]} e5 {[%emt 0:00:08]} 2. Nf3 {[%emt 0:00:00]} Nc6 {[%emt 0:00:06]} 3. Bb5 {[%emt 0:00:00]} a6 {[%emt 0:00:30]} 4. Ba4 {[%emt 0:00:00]} Nf6 {[%emt 0:00:16] LiveBook: 51477 Games} 5. O-O {[%emt 0:00:02]} Bc5 {[%emt 0:00:27]} 6. d3 {[%emt 0:00:33]} b5 {[%emt 0:00:13]} 7. Bb3 {[%emt 0:00:07]} d6 {[%emt 0:00:10]} 8. a4 {[%emt 0:00:14]} Rb8 {[%emt 0:01:22]} 9. axb5 {[%emt 0:01:20]} axb5 {[%emt 0:00:07]} ({Not} 9... Rxb5 $2 10. Ba4 $18) 10. Nc3 {[%emt 0:00:05] C78: Ruy Lopez: Archangelsk and Möller Defences} (10. Be3 Bxe3 11. fxe3 O-O 12. Nc3 Ne7 13. Nd5 Nfxd5 14. Bxd5 c6 15. Bb3 Ng6 16. Qe1 c5 17. Ra7 c4 18. dxc4 {1-0 (36) Smirin,I (2667)-Jones,G (2665) Wijk aan Zee 2017}) 10... Bg4 {[%emt 0:01:05]} 11. Be3 {[%emt 0:03:51]} Nd4 {[%emt 0:02:00]} 12. Bxd4 {[%emt 0:01:48]} Bxd4 {[%emt 0:00:20]} 13. h3 {[%emt 0:00:44]} Bh5 {[%emt 0:04:25]} 14. g4 {[%emt 0:07:37]} Bxc3 $1 {[%emt 0:02:42]} 15. bxc3 {[%emt 0:07:23]} Nxg4 $146 {[%emt 0:06:19]} (15... Bg6 $11 {keeps the balance.} 16. Nh4 h5 17. Nxg6 fxg6 {0-1 (45) Schoene,M (2151)-Mkrtchian,L (2458) Dresden 2007}) 16. hxg4 {[%emt 0:07:07]} Bxg4 {[%emt 0:00:12]} 17. Bxf7+ {[%emt 0:10:42]} Kxf7 {[%emt 0:00:11] [#]} 18. Nxe5+ $1 {[%emt 0:00:06]} dxe5 {[%emt 0:00:09]} 19. Qxg4 {[%emt 0:00:06]} Rb6 {[%emt 0:02:35]} 20. Qf5+ {[%emt 0:04:29]} ({Not} 20. f4 $2 Rg6 21. fxe5+ Kg8 $19) 20... Rf6 {[%emt 0:02:40]} 21. Qh5+ {[%emt 0:04:39]} ({Not} 21. Qxe5 $2 Re8 22. Qh5+ Rg6+ 23. Kh1 Kf8 $19) 21... Rg6+ {[%emt 0:02:23]} 22. Kh1 {[%emt 0:00:37]} Re8 {[%emt 0:13:24]} 23. Rg1 {[%emt 0:02:24]} Qf6 {[%emt 0:04:24]} 24. Rxg6 {[%emt 0:03:57]} hxg6 {[%emt 0:01:59]} 25. Qh3 {[%emt 0:00:26]} Kg8 {[%emt 0:04:03]} 26. Kg2 {[%emt 0:01:39]} Qc6 {[%emt 0:05:09]} 27. Rh1 {[%emt 0:03:54]} Kf7 {[%emt 0:05:49]} 28. Qf3+ {[%emt 0:07:12]} Kg8 {[%emt 0:04:15]} 29. Qh3 $11 {[%emt 0:09:46]} Kf7 {[%emt 0:05:26]} 30. Qf3+ {[%emt 0:00:28]} Kg8 {[%emt 0:01:47]} 31. Qh3 {[%emt 0:00:08]} 1/2-1/2

[Event "RUS-ch Youth U21 Girls 2017"]
[Site "Loo"]
[Date "2017.04.28"]
[Round "9"]
[White "Khokhlova, Daria"]
[Black "Dordzhieva, Dinara"]
[Result "0-1"]
[ECO "D11"]
[WhiteElo "2175"]
[BlackElo "2277"]
[Annotator "NA"]
[PlyCount "100"]
[EventDate "2017.??.??"]
[EventType "tourn"]
[EventCountry "RUS"]
[SourceTitle "playchess.com"]
[Source "ChessBase"]
[SourceQuality "1"]
[TimeControl "40/5400+30:1800+30"]

{[%evp 9,100,25,29,22,22,16,21,24,19,32767,32767,32767,32767,10,19,13,24,32767,13,26,32767,32767,18,25,18,2,16,-23,-13,-19,-8,-16,-8,-102,32767,32767,32767,32767,32767,-122,-97,-178,-120,-163,32767,-195,-176,-218,32767,32767,-253,32767,32767,32767,-197,-166,0,-128,-137,32767,32767,32767,32767,-232,32767,32767,32767,32767,32767,-333,32767,-276,-185,32767,-240,32767,-259,32767,-280,-255,-332,-248,-280,32767,-361,32767,32767,32767,-575,32767,32767,32767,-1062]} 1. d4 {[%emt 0:00:00]} d5 {[%emt 0:00:13]} 2. c4 {[%emt 0:00:00]} c6 {[%emt 0:00:03]} 3. Nf3 {[%emt 0:00:00]} Nf6 {[%emt 0:00:05]} 4. e3 {[%emt 0:00:00]} e6 {[%emt 0:00:03]} 5. b3 {[%emt 0:00:00]} Nbd7 {[%emt 0:00:05]} 6. Bb2 {[%emt 0:00:13]} Bd6 {[%emt 0:00:08]} 7. Bd3 {[%emt 0:00:05]} O-O {[%emt 0:00:11] A06: Réti Opening:1 Nf3 d5} 8. O-O {[%emt 0:00:02]} b6 {[%emt 0:00:03] LiveBook: 103 Games} 9. Nbd2 {[%emt 0:00:04]} Bb7 {[%emt 0:00:10]} 10. Ne5 {[%emt 0:00:05]} (10. Qe2 c5 11. Rad1 cxd4 12. Nxd4 Nc5 13. Bb1 Re8 14. cxd5 exd5 15. Nf5 Ba6 16. Nc4 Be5 17. Bxe5 Rxe5 18. Qb2 Re6 {½-½ (61) Grischuk,A (2747)-Ding,L (2778) Wenzhou 2016}) 10... c5 {[%emt 0:00:12]} 11. cxd5 {[%emt 0:11:26]} exd5 {[%emt 0:00:13]} 12. f4 {[%emt 0:00:28]} cxd4 {[%emt 0:00:23]} 13. exd4 {[%emt 0:00:25]} Ne4 {[%emt 0:00:09]} 14. Nxe4 {[%emt 0:06:49]} dxe4 {[%emt 0:00:06]} 15. Bc4 {[%emt 0:00:13]} Nf6 $146 {[%emt 0:00:14]} 16. Qe2 {[%emt 0:08:07]} Rc8 {[%emt 0:01:08]} 17. Rac1 {[%emt 0:03:58]} Rc7 {[%emt 0:00:00]} 18. Ba6 {[%emt 0:13:20]} Rxc1 {[%emt 0:20:48]} 19. Rxc1 {[%emt 0:01:52]} Bxa6 {[%emt 0:00:49]} 20. Qxa6 {[%emt 0:00:02]} Nd5 {[%emt 0:00:14]} 21. Qb7 {[%emt 0:12:03]} (21. g3 $1 $11) 21... Nxf4 {[%emt 0:09:07]} 22. Qxe4 {[%emt 0:03:22]} Bxe5 {[%emt 0:00:57]} 23. dxe5 {[%emt 0:00:13]} Qd2 {[%emt 0:01:38]} 24. Rb1 {[%emt 0:23:37]} Rd8 {[%emt 0:25:08]} 25. Qf3 {[%emt 0:07:45]} (25. h3 $17) 25... h6 {[%emt 0:21:06]} 26. Qf2 {[%emt 0:02:50]} g5 {[%emt 0:08:33]} 27. Qxd2 {[%emt 0:04:52]} Rxd2 {[%emt 0:00:06]} 28. g3 {[%emt 0:00:29]} Nh3+ {[%emt 0:02:27]} 29. Kh1 {[%emt 0:00:05]} g4 {[%emt 0:00:12]} 30. a4 {[%emt 0:00:52]} Kh7 {[%emt 0:05:14]} 31. Bc3 $1 $11 {[%emt 0:00:37] was the only way to keep the balance.} Rc2 {[%emt 0:01:21]} (31... Rd3 32. Rc1) 32. Bd4 {[%emt 0:00:07]} Rd2 $2 {[%emt 0:01:12]} (32... Ng5 $17 {Hoping for ...Nf3.} 33. Rb2 Rc1+ 34. Kg2 Nf3) 33. Be3 {[%emt 0:00:44]} Re2 {[%emt 0:00:45]} 34. Bf4 {[%emt 0:00:35]} Kg6 {[%emt 0:00:31]} 35. Rc1 {[%emt 0:00:25]} h5 {[%emt 0:00:29]} 36. b4 {[%emt 0:00:57]} ({Not} 36. Rc6+ $2 {[#]} f6 $1 {[%mdl 512]} 37. Rxf6+ Kh7 $19) 36... a6 {[%emt 0:01:20]} 37. b5 {[%emt 0:00:27]} axb5 {[%emt 0:00:04]} 38. axb5 {[%emt 0:00:00]} Kf5 {[%emt 0:00:15]} 39. Rb1 {[%emt 0:00:49]} Ke6 {[%emt 0:01:51]} 40. Rc1 {[%emt 0:00:00]} Kd5 {[%emt 0:02:24]} 41. Rf1 {[%emt 0:06:33]} Kc4 {[%emt 0:03:58]} 42. Rb1 {[%emt 0:02:11]} Kc5 {[%emt 0:00:58]} 43. Bh6 {[%emt 0:01:41]} Rxe5 {[%emt 0:02:45]} ({Don't take} 43... Nf2+ 44. Kg2 Nh3+ 45. Kf1 Rf2+ 46. Ke1 Rxh2 47. Rb3 $19) 44. Bf8+ {[%emt 0:00:06]} Kc4 {[%emt 0:00:32]} 45. Rb4+ {[%emt 0:02:01]} Kd3 {[%emt 0:00:16]} 46. Rb1 {[%emt 0:00:31]} Kc2 {[%emt 0:01:25]} 47. Rf1 {[%emt 0:00:22]} Rxb5 {[%emt 0:00:26]} 48. Kg2 {[%emt 0:00:18]} Rb1 {[%emt 0:02:01]} 49. Rxb1 {[%emt 0:03:13]} Kxb1 {[%emt 0:00:14]} 50. Bh6 {[%emt 0:00:11]} Kc2 $19 {[%emt 0:00:05]} 0-1